fUST/lending_fUST_20250131
["ID","MTS","AMOUNT","RATE_DAILY","PERIOD"]
[350971902,1738259437158,-151.0,0.00017808,2]
[350971903,1738259437167,-151.0,0.00017808,2]
[350971904,1738259437176,-1168.39,0.00017888,2]
[350971905,1738259437186,-500.0,0.00017945,2]
[350971906,1738259437195,-989.8,0.00017945,2]
[350971907,1738259437204,-915.85,0.00017945,2]
[350971908,1738259437213,-4193.58,0.00017945,2]
[350971909,1738259437225,-500.0,0.00017945,2]
[350971910,1738259437235,-715.43,0.00017945,2]
[350971911,1738259437244,-500.0,0.00017945,2]
[350971912,1738259437253,-420.0,0.00017963,2]
[350971913,1738259437263,-1168.39,0.00018025,2]
[350971914,1738259437273,-152.0,0.00018038,5]
[350971915,1738259437282,-467.22,0.00018082,2]
[350971916,1738259437291,-989.8,0.00018082,2]
[350971917,1738259437301,-915.85,0.00018082,2]
[350971918,1738259437311,-4193.58,0.00018082,2]
[350971919,1738259437320,-601.92,0.00018082,2]
[350971920,1738259437329,-715.43,0.00018082,2]
[350971921,1738259437340,-500.0,0.00018082,2]
[350971922,1738259437349,-151.0,0.00018162,2]
[350971924,1738259437359,-151.0,0.00018162,2]
[350971926,1738259437369,-151.0,0.00018162,2]
[350971928,1738259437378,-1168.39,0.00018162,2]
[350971929,1738259437387,-989.8,0.00018219,2]
[350971930,1738259437398,-915.85,0.00018219,2]
[350971931,1738259437407,-4193.58,0.00018219,2]
[350971932,1738259437416,-715.43,0.00018219,2]
[350971933,1738259437425,-500.0,0.00018219,2]
[350971935,1738259437435,-1168.39,0.00018299,2]
[350971937,1738259437444,-158.264,0.00018306,2]
[350971939,1738259437453,-500.0,0.00018355,2]
[350971941,1738259437464,-151.0,0.00018356,2]
[350971943,1738259437473,-151.0,0.00018356,2]
[350971945,1738259437483,-989.8,0.00018356,2]
[350971947,1738259437492,-915.85,0.00018356,2]
[350971949,1738259437501,-4193.58,0.00018356,2]
[350971951,1738259437510,-715.43,0.00018356,2]
[350971953,1738259437520,-500.0,0.00018356,2]
[350971955,1738259437529,-1168.39,0.00018436,2]
[350971956,1738259437539,-500.0,0.00018464,2]
[350971958,1738259437548,-989.8,0.00018493,2]
[350971960,1738259437556,-915.85,0.00018493,2]
[350971962,1738259437566,-4193.58,0.00018493,2]
[350971964,1738259437575,-715.43,0.00018493,2]
[350971966,1738259437585,-500.0,0.00018493,2]
[350971968,1738259437594,-1168.39,0.00018573,2]
[350971970,1738259437603,-156.49,0.000186,2]
[350971972,1738259437612,-156.49,0.000186,2]
[350971974,1738259437621,-989.8,0.0001863,2]
[350971976,1738259437630,-915.85,0.0001863,2]
[350971978,1738259437640,-279.038813,0.0001863,2]
[350971980,1738259437650,-4193.58,0.0001863,2]
[350971982,1738259437659,-279.038813,0.0001863,2]
[350971984,1738259437670,-715.43,0.0001863,2]
[350971986,1738259437679,-500.0,0.0001863,2]
[350971988,1738259437689,-1168.39,0.0001871,2]
[350971990,1738259437698,-989.8,0.00018767,2]
[350971992,1738259437708,-915.85,0.00018767,2]
[350971994,1738259437717,-4193.58,0.00018767,2]
[350971996,1738259437727,-715.43,0.00018767,2]
[350971998,1738259437736,-500.0,0.00018767,2]
[350972000,1738259437745,-1168.39,0.00018847,2]
[350972002,1738259437755,-150.0,0.000189,2]
[350972004,1738259437764,-989.8,0.00018904,2]
[350972006,1738259437774,-915.85,0.00018904,2]
[350972008,1738259437783,-4193.58,0.00018904,2]
[350972010,1738259437793,-715.43,0.00018904,2]
[350972012,1738259437802,-500.0,0.00018904,2]
[350972014,1738259437815,-1168.39,0.00018984,2]
[350972017,1738259437830,-778.542125,0.00018984,2]
[350972019,1738259437845,-778.542125,0.00018984,2]
[350972021,1738259437862,-253.545317,0.00018984,2]
[350972024,1738259437874,-253.545317,0.00018984,2]
[350972026,1738259437885,-151.0,0.00018984,2]
[350972028,1738259437897,-151.0,0.00018984,2]
[350972030,1738259437912,-500.0,0.0001904,2]
[350972033,1738259437924,-989.8,0.00019041,2]
[350972035,1738259437939,-915.85,0.00019041,2]
[350972037,1738259437952,-4193.58,0.00019041,2]
[350972040,1738259437965,-715.43,0.00019041,2]
[350972042,1738259437978,-613.84,0.00019041,2]
[350972044,1738259437991,-151.0,0.00019098,2]
[350972047,1738259438005,-151.0,0.00019098,2]
[350972049,1738259438017,-151.0,0.00019098,2]
[350972051,1738259438028,-151.0,0.00019098,2]
[350972054,1738259438040,-500.0,0.00019098,2]
[350972056,1738259438052,-14005.01884497,0.00019099,2]
[350972058,1738259438066,-500.0,0.00019099,2]
[350972061,1738259438078,-500.0,0.00019099,2]
[350972063,1738259438091,-500.0,0.00019099,2]
[350972065,1738259438103,-500.0,0.00019099,2]
[350972067,1738259438114,-500.0,0.00019099,2]
[350972070,1738259438125,-467.532371,0.00019099,2]
[350972072,1738259438135,-151.0,0.00019099,2]
[350972074,1738259438146,-151.0,0.00019099,2]
[350972076,1738259438158,-222.691858,0.00019099,2]
[350972078,1738259438169,-151.0,0.00019099,2]
[350972080,1738259438182,-222.691858,0.00019099,2]
[350972083,1738259438193,-151.0,0.00019099,2]
[350972085,1738259438206,-151.0,0.00019099,2]
[350972087,1738259438218,-152.140433,0.00019099,2]
[350972089,1738259438230,-152.140433,0.00019099,2]
[350972092,1738259438242,-645.046698,0.00019099,2]
[350972094,1738259438254,-645.046698,0.00019099,2]
[350972096,1738259438267,-151.0,0.00019099,2]
[350972099,1738259438278,-1168.39,0.00019121,2]
[350972101,1738259438288,-500.0,0.00019178,7]
[350972103,1738259438298,-275.180207,0.00019178,2]
[350972105,1738259438308,-151.0,0.00019178,2]
[350972107,1738259438318,-989.8,0.00019178,2]
[350972109,1738259438330,-518.41704767,0.00019178,2]
[350972112,1738259438343,-915.85,0.00019178,2]
[350972114,1738259438356,-4193.58,0.00019178,2]
[350972116,1738259438367,-715.43,0.00019178,2]
[350972118,1738259438376,-229.431363,0.00019178,2]
[350972120,1738259438387,-279.038813,0.0001919,2]
[350972122,1738259438398,-279.038813,0.0001919,2]
[350972125,1738259438409,-1168.39,0.00019258,2]
[350972127,1738259438421,-989.8,0.00019315,2]
[350972129,1738259438432,-915.85,0.00019315,2]
[350972131,1738259438443,-4193.58,0.00019315,2]
[350972133,1738259438453,-715.43,0.00019315,2]
[350972135,1738259438463,-1168.39,0.00019395,2]
[350972137,1738259438475,-151.0,0.00019451,2]
[350972140,1738259438486,-989.8,0.00019452,2]
[350972142,1738259438497,-915.85,0.00019452,2]
[350972144,1738259438509,-4193.58,0.00019452,2]
[350972146,1738259438520,-715.43,0.00019452,2]
[350972148,1738259438531,-1168.39,0.00019532,2]
[350972150,1738259438542,-778.542125,0.00019589,2]
[350972152,1738259438552,-778.542125,0.00019589,2]
[350972154,1738259438563,-989.89262479,0.00019589,2]
[350972157,1738259438574,-253.545317,0.00019589,2]
[350972159,1738259438585,-253.545317,0.00019589,2]
[350972161,1738259438596,-915.90194578,0.00019589,2]
[350972163,1738259438606,-4193.59423876,0.00019589,2]
[350972165,1738259438617,-715.66,0.00019589,2]
[350972167,1738259438628,-151.0,0.00019589,2]
[350972170,1738259438639,-151.0,0.00019589,2]
[350972172,1738259438649,-587.0,0.00019631,2]
[350972174,1738259438661,-1168.39,0.00019669,2]
[350972176,1738259438671,-152.999976,0.00019673,2]
[350972178,1738259438681,-151.0,0.00019673,2]
[350972180,1738259438692,-151.0,0.00019673,2]
[350972182,1738259438703,-151.0,0.00019725,2]
[350972184,1738259438714,-252.003566,0.00019725,2]
[350972186,1738259438725,-545.854364,0.00019725,2]
[350972189,1738259438736,-545.854364,0.00019725,2]
[350972191,1738259438748,-151.0,0.00019806,2]
[350972193,1738259438758,-281.152754,0.00019806,2]
[350972195,1738259438769,-151.0,0.00019806,2]
[350972197,1738259438780,-1168.39,0.00019806,2]
[350972199,1738259438791,-1168.39,0.00019943,2]
[350972201,1738259438801,-160.0,0.0002,2]
[350972203,1738259438812,-1168.39,0.0002008,2]
[350972205,1738259438823,-500.0,0.00020149,2]
[350972208,1738259438834,-500.0,0.00020183,2]
[350972210,1738259438845,-1168.39,0.00020217,2]
[350972212,1738259438857,-151.0,0.00020298,2]
[350972214,1738259438870,-151.0,0.00020298,2]
[350972216,1738259438881,-151.0,0.00020298,2]
[350972218,1738259438892,-151.0,0.00020298,2]
[350972220,1738259438903,-151.0,0.00020298,2]
[350972222,1738259438914,-1168.57,0.00020354,2]
[350972225,1738259438926,-500.0,0.0002038,2]
[350972227,1738259438937,-151.0,0.000204,3]
[350972229,1738259438951,-150.0,0.000205,2]
[350972231,1738259438964,-500.0,0.00020587,2]
[350972233,1738259438974,-151.0,0.00020588,2]
[350972235,1738259438985,-151.0,0.00020588,2]
[350972238,1738259438997,-222.691858,0.00020588,2]
[350972240,1738259439008,-151.0,0.00020588,2]
[350972242,1738259439019,-222.691858,0.00020588,2]
[350972256,1738259439146,-151.0,0.00020588,2]
[350972259,1738259439164,-151.0,0.00020588,2]
[350972261,1738259439174,-152.140433,0.00020588,2]
[350972263,1738259439184,-152.140433,0.00020588,2]
[350972265,1738259439194,-645.046698,0.00020588,2]
[350972267,1738259439205,-645.046698,0.00020588,2]
[350972269,1738259439215,-300.533586,0.00020698,2]
[350972271,1738259439224,-1000.0,0.00020731,2]
[350972273,1738259439233,-157.870766,0.00020807,2]
[350972275,1738259439243,-153.0,0.00020897,2]
[350972277,1738259439252,-153.0,0.00020897,2]
[350972279,1738259439262,-153.0,0.00020897,2]
[350972281,1738259439271,-153.0,0.00020897,2]
[350972283,1738259439280,-153.0,0.00020897,2]
[350972285,1738259439290,-153.0,0.00020897,2]
[350972287,1738259439299,-153.0,0.00020897,2]
[350972288,1738259439308,-153.0,0.00020898,2]
[350972290,1738259439318,-153.0,0.00020898,2]
[350972293,1738259439328,-153.0,0.00020898,2]
[350972294,1738259439338,-153.0,0.00020898,2]
[350972296,1738259439347,-153.0,0.00020898,2]
[350972298,1738259439356,-153.0,0.00020898,2]
[350972301,1738259439366,-153.0,0.00020898,2]
[350972303,1738259439376,-153.0,0.00020899,2]
[350972304,1738259439385,-153.0,0.00020899,2]
[350972307,1738259439395,-153.0,0.00020899,2]
[350972309,1738259439405,-157.72,0.000209,2]
[350972311,1738259439414,-477.13802028,0.00020928,2]
[350972313,1738259439424,-858.6560087,0.00021,7]
[350972315,1738259439433,-151.0,0.00021,4]
[350972317,1738259439442,-395.0,0.0002143,2]
[350972319,1738259439451,-823.0,0.00021454,2]
[350972321,1738259439460,-151.0,0.000215,4]
[350972323,1738259439469,-29152.42,0.000215,30]
[350972325,1738259439480,-279.038813,0.00021733,2]
[350972327,1738259439489,-279.038813,0.00021733,2]
[350972329,1738259439499,-1500.0,0.00021733,2]
[350972331,1738259439509,-990.91294527,0.00021751,2]
[350972333,1738259439518,-1000.0,0.00021757,2]
[350972335,1738259439529,-1000.0,0.00021792,2]
[350972337,1738259439538,-500.0,0.00021825,30]
[350972339,1738259439548,-500.0,0.00021876,2]
[350972341,1738259439557,-500.0,0.00021917,7]
[350972343,1738259439566,-235.34181989,0.00021918,2]
[350972345,1738259439576,-660.0,0.00021918,2]
[350972347,1738259439585,-500.0,0.00021973,2]
[350972349,1738259439594,-1000.0,0.00021995,2]
[350972351,1738259439603,-151.0,0.00021997,7]
[350972353,1738259439612,-151.0,0.00021997,7]
[350972355,1738259439622,-151.0,0.00021997,7]
[350972357,1738259439631,-151.0,0.00021997,7]
[350972359,1738259439640,-500.0,0.00021999,2]
[350972361,1738259439650,-500.0,0.00021999,2]
[350972363,1738259439659,-547.05,0.00021999,2]
[350972365,1738259439669,-82499.01969115,0.00022,2]
[350972368,1738259439689,-56353.38139806,0.00022,2]
[350972373,1738259439733,-8.80650471,0.00017044,2]
[350972390,1738259439890,-388.01602335,0.00016438,2]
[350972500,1738259441192,-111.98397665,0.00016438,2]
[350972502,1738259441202,-286.38825024,0.00016575,2]
[350973014,1738259445880,-424.90103975,0.00016438,2]
[350973016,1738259445890,-500.0,0.00016438,2]
[350973018,1738259445900,-236.97031844,0.00016438,2]
[350973020,1738259445912,-263.02968156,0.00016438,2]
[350973022,1738259445921,-272.88,0.00016438,2]
[350973024,1738259445932,-500.0,0.00016438,2]
[350973026,1738259445941,-213.61174976,0.00016575,2]
[350973028,1738259445952,-500.0,0.00016575,2]
[350973030,1738259445961,-500.0,0.00016575,2]
[350973032,1738259445972,-500.0,0.00016575,2]
[350973034,1738259445982,-295.242229,0.00016712,2]
[350973036,1738259445991,-151.0,0.00016712,2]
[350973038,1738259446000,-295.242229,0.00016712,2]
[350973040,1738259446010,-148.48074629,0.00016712,2]
[350973043,1738259446022,-46.01925371,0.00016712,2]
[350973045,1738259446031,-500.0,0.00016712,2]
[350973047,1738259446041,-500.0,0.00016712,2]
[350973048,1738259446050,-295.37082511,0.00016849,2]
[350973050,1738259446059,-500.0,0.00016849,2]
[350973052,1738259446068,-156.575497,0.00016915,2]
[350973054,1738259446078,-142.19349529,0.00017044,2]
[350973056,1738259446087,-295.242229,0.00017044,2]
[350973058,1738259446097,-151.0,0.00017044,2]
[350973070,1738259446199,-295.242229,0.00017044,2]
[350973072,1738259446209,-340.76575949,0.00017123,5]
[350973074,1738259446219,-151.0,0.00017207,2]
[350973076,1738259446229,-295.242229,0.00017207,2]
[350973078,1738259446238,-151.0,0.00017207,2]
[350973080,1738259446247,-295.242229,0.00017207,2]
[350973082,1738259446257,-151.0,0.000177,2]
[350973084,1738259446266,-109.5762534,0.000177,2]
[350973175,1738259447152,-185.6659756,0.000177,2]
[350973177,1738259447162,-151.0,0.000177,2]
[350973179,1738259447172,-199.17749261,0.000177,2]
[350973181,1738259447184,-96.06473639,0.000177,2]
[350973183,1738259447194,-295.242229,0.0001863,2]
[350973185,1738259447203,-151.0,0.0001863,2]
[350973187,1738259447212,-295.242229,0.0001863,2]
[350973189,1738259447221,-295.242229,0.0001919,2]
[350973191,1738259447231,-151.0,0.0001919,2]
[350973193,1738259447240,-295.242229,0.0001919,2]
[350973195,1738259447250,-295.242229,0.00021733,2]
[350973197,1738259447259,-151.0,0.00021733,2]
[350973199,1738259447268,-295.242229,0.00021733,2]
[350973201,1738259447278,-254.82422875,0.00022,2]
[350973203,1738259447289,-7236.20797811,0.00022,2]
[350975114,1738259789138,157.870766,0.00013973,2]
[350975116,1738260359123,-175.60469262,0.00015273,2]
[350975117,1738260440110,-300.0,0.00015272,2]
[350975118,1738260440131,-13.81760715,0.00015273,2]
[350975119,1738260546149,-300.0,0.00015272,2]
[350975120,1738260546171,-8216.31021163,0.00015273,2]
[350975121,1738260546193,-154.8915759,0.00015273,2]
[350975122,1738260546214,-199.597517,0.00015273,2]
[350975123,1738260546236,-500.0,0.00016438,2]
[350975124,1738260546272,-500.0,0.00016438,2]
[350975125,1738260546297,-500.0,0.00016438,2]
[350975126,1738260546320,-326.98471996,0.00016438,2]
[350975127,1738260546341,-500.0,0.00016438,2]
[350975128,1738260546363,-250.54787121,0.00016438,2]
[350975129,1738260563772,243.3438,0.00015746,2]
[350975130,1738260564077,-1913.46952855,0.00015746,2]
[350975131,1738260573109,-22553.60340167,0.00015746,2]
[350975180,1738260632260,-189.58326978,0.00015746,2]
[350975182,1738260632272,-379.07419147,0.00016338,2]
[350975184,1738260632283,-300.0,0.00016437,2]
[350975186,1738260632294,-250.77501369,0.00016438,2]
[350975188,1738260632306,-531.97615328,0.00016438,2]
[350975190,1738260632317,-500.47809552,0.00016438,2]
[350975192,1738260632328,-500.0,0.00016438,2]
[350975194,1738260632339,-500.0,0.00016438,2]
[350975197,1738260632350,-500.0,0.00016438,2]
[350975199,1738260632361,-499.63944164,0.00016438,2]
[350975201,1738260632371,-501.50843987,0.00016438,2]
[350975203,1738260632382,-500.0,0.00016438,2]
[350975205,1738260632393,-500.0,0.00016438,2]
[350975207,1738260632403,-360.50245184,0.00016438,2]
[350975209,1738260632414,-500.0,0.00016438,2]
[350975211,1738260632425,-500.0,0.00016438,2]
[350975213,1738260632436,-500.0,0.00016438,2]
[350975215,1738260632447,-500.0,0.00016438,2]
[350975218,1738260632458,-500.0,0.00016438,2]
[350975220,1738260632468,-500.0,0.00016438,2]
[350975236,1738260632630,-501.13753667,0.00016438,2]
[350975238,1738260632642,-500.0,0.00016438,2]
[350975240,1738260632651,-500.0,0.00016438,2]
[350975242,1738260632661,-500.0,0.00016438,2]
[350975244,1738260632671,-500.0,0.00016438,2]
[350975246,1738260632681,-526.02579068,0.00016438,2]
[350975248,1738260632691,-470.0,0.00016438,2]
[350975250,1738260632700,-500.0,0.00016438,2]
[350975252,1738260632710,-500.0,0.00016438,2]
[350975253,1738260632720,-500.0,0.00016438,2]
[350975255,1738260632729,-448.41840774,0.00016438,2]
[350975257,1738260632738,-500.0,0.00016438,2]
[350975259,1738260632747,-500.0,0.00016438,2]
[350975261,1738260632758,-500.0,0.00016438,2]
[350975263,1738260632768,-500.0,0.00016438,2]
[350975265,1738260632777,-584.35,0.00016438,2]
[350975267,1738260632786,-606.73120865,0.00016438,2]
[350975269,1738260632795,-500.0,0.00016438,2]
[350975271,1738260632805,-500.0,0.00016438,2]
[350975273,1738260632814,-500.0,0.00016438,2]
[350975275,1738260632824,-500.0,0.00016438,2]
[350975277,1738260632834,-500.0,0.00016438,2]
[350975279,1738260632843,-500.0,0.00016438,2]
[350975281,1738260632853,-500.0,0.00016438,2]
[350975283,1738260632863,-500.0,0.00016438,2]
[350975285,1738260632872,-7.48755058,0.00016438,2]
[350975347,1738260638113,-495.7826079,0.00016438,2]
[350975348,1738260638123,-500.0,0.00016438,2]
[350975349,1738260638133,-500.0,0.00016438,2]
[350975350,1738260638142,-507.52446146,0.00016438,2]
[350975351,1738260638152,-500.0,0.00016438,2]
[350975352,1738260638161,-500.0,0.00016438,2]
[350975353,1738260638171,-500.0,0.00016438,2]
[350975354,1738260638180,-500.0,0.00016438,2]
[350975355,1738260638189,-443.67500672,0.00016438,2]
[350975356,1738260638201,-56.32499328,0.00016438,2]
[350975357,1738260638211,-500.0,0.00016438,2]
[350975358,1738260638220,-500.0,0.00016438,2]
[350975359,1738260638230,-154.4997641,0.00016438,2]
[350975360,1738260638239,-500.0,0.00016438,2]
[350975361,1738260638249,-500.0,0.00016438,2]
[350975362,1738260638262,-1407.50542178,0.00016438,2]
[350975363,1738260638274,-2600.75457822,0.00016438,2]
[350975364,1738260638283,-500.0,0.00016438,2]
[350975365,1738260638293,-500.0,0.00016438,2]
[350975366,1738260638304,-500.0,0.00016438,2]
[350975367,1738260638313,-500.0,0.00016438,2]
[350975368,1738260638322,-500.0,0.00016438,2]
[350975369,1738260638331,-500.0,0.00016438,2]
[350975370,1738260638341,-500.0,0.00016438,2]
[350975371,1738260638351,-625.30064821,0.00016438,2]
[350975372,1738260638361,-500.0,0.00016438,2]
[350975373,1738260638370,-500.0,0.00016438,2]
[350975374,1738260638380,-500.0,0.00016438,2]
[350975375,1738260638389,-500.0,0.00016438,2]
[350975376,1738260638399,-500.0,0.00016438,2]
[350975377,1738260638408,-500.0,0.00016438,2]
[350975378,1738260638418,-500.0,0.00016438,2]
[350975379,1738260638428,-683.4,0.00016438,2]
[350975380,1738260638437,-1558.53,0.00016438,2]
[350975381,1738260638446,-500.0,0.00016438,2]
[350975382,1738260638455,-500.0,0.00016438,2]
[350975383,1738260638465,-500.0,0.00016438,2]
[350975384,1738260638474,-500.0,0.00016438,2]
[350975385,1738260638483,-500.0,0.00016438,2]
[350975386,1738260638492,-500.0,0.00016438,2]
[350975387,1738260638501,-500.0,0.00016438,2]
[350975388,1738260638511,-500.0,0.00016438,2]
[350975389,1738260638521,-500.0,0.00016438,2]
[350975390,1738260638530,-308.50439352,0.00016438,2]
[350975391,1738260638539,-500.0,0.00016438,2]
[350975392,1738260638549,-500.0,0.00016438,2]
[350975393,1738260638558,-500.0,0.00016438,2]
[350975394,1738260638567,-500.0,0.00016438,2]
[350975395,1738260638576,-624.03,0.00016438,2]
[350975396,1738260638586,-500.0,0.00016438,2]
[350975397,1738260638596,-767.73,0.00016438,2]
[350975398,1738260638606,-500.0,0.00016438,2]
[350975399,1738260638617,-500.0,0.00016438,2]
[350975400,1738260638627,-500.0,0.00016438,2]
[350975401,1738260638638,-500.0,0.00016438,2]
[350975402,1738260638648,-500.0,0.00016438,2]
[350975403,1738260638658,-500.0,0.00016438,2]
[350975404,1738260638668,-500.0,0.00016438,2]
[350975405,1738260638677,-603.53,0.00016438,2]
[350975406,1738260638687,-500.0,0.00016438,2]
[350975407,1738260638696,-500.0,0.00016438,2]
[350975408,1738260638705,-500.0,0.00016438,2]
[350975409,1738260638716,-500.0,0.00016438,2]
[350975410,1738260638725,-500.0,0.00016438,2]
[350975411,1738260638735,-500.0,0.00016438,2]
[350975412,1738260638744,-407.94058181,0.00016438,2]
[350975413,1738260638755,-588.37,0.00016438,2]
[350975414,1738260638765,-500.0,0.00016438,2]
[350975415,1738260638775,-1835.42,0.00016438,2]
[350975416,1738260638789,-500.0,0.00016574,2]
[350975417,1738260638798,-500.0,0.00016575,2]
[350975418,1738260638808,-500.0,0.00016575,2]
[350975419,1738260638818,-510.63596011,0.00016575,2]
[350975420,1738260638828,-603.09811123,0.00016575,2]
[350975421,1738260638837,-226.8,0.00016575,2]
[350975422,1738260638847,-633.53,0.00016575,2]
[350975423,1738260638856,-500.0,0.00016575,2]
[350975424,1738260638866,-500.0,0.00016575,2]
[350975425,1738260638876,-500.0,0.00016575,2]
[350975426,1738260638886,-500.0,0.00016575,2]
[350975427,1738260638896,-500.0,0.00016575,2]
[350975428,1738260638906,-500.0,0.00016575,2]
[350975429,1738260638915,-500.0,0.00016575,2]
[350975430,1738260638924,-311.83,0.00016575,2]
[350975431,1738260638934,-500.0,0.00016575,2]
[350975432,1738260638944,-500.0,0.00016575,2]
[350975433,1738260638954,-500.0,0.00016575,2]
[350975434,1738260638964,-500.0,0.00016575,2]
[350975435,1738260638973,-500.0,0.00016575,2]
[350975436,1738260638982,-500.0,0.00016575,2]
[350975437,1738260638992,-500.0,0.00016575,2]
[350975438,1738260639001,-294.50262935,0.00016575,2]
[350975439,1738260639014,-500.0,0.00016575,2]
[350975440,1738260639024,-4008.26,0.00016575,2]
[350975441,1738260639034,-500.0,0.00016575,2]
[350975442,1738260639044,-500.0,0.00016575,2]
[350975443,1738260639054,-500.0,0.00016575,2]
[350975444,1738260639064,-500.0,0.00016575,2]
[350975445,1738260639073,-500.0,0.00016575,2]
[350975446,1738260639082,-500.0,0.00016575,2]
[350975447,1738260639092,-500.0,0.00016575,2]
[350975448,1738260639101,-500.0,0.00016575,2]
[350975449,1738260639110,-500.0,0.00016575,2]
[350975450,1738260639120,-500.0,0.00016575,2]
[350975451,1738260639130,-683.4,0.00016575,2]
[350975452,1738260639139,-1558.53,0.00016575,2]
[350975453,1738260639148,-500.0,0.00016575,2]
[350975454,1738260639158,-500.0,0.00016575,2]
[350975455,1738260639168,-500.0,0.00016575,2]
[350975456,1738260639178,-500.0,0.00016575,2]
[350975457,1738260639187,-500.0,0.00016575,2]
[350975458,1738260639196,-296.41712949,0.00016575,2]
[350975459,1738260639205,-500.0,0.00016575,2]
[350975460,1738260639214,-500.0,0.00016575,2]
[350975461,1738260639224,-500.0,0.00016575,2]
[350975462,1738260639233,-500.0,0.00016575,2]
[350975463,1738260639242,-767.73,0.00016575,2]
[350975464,1738260639253,-500.0,0.00016575,2]
[350975465,1738260639264,-500.0,0.00016575,2]
[350975466,1738260639274,-500.0,0.00016575,2]
[350975467,1738260639283,-500.0,0.00016575,2]
[350975468,1738260639292,-500.0,0.00016575,2]
[350975469,1738260639302,-500.0,0.00016575,2]
[350975470,1738260639311,-500.0,0.00016575,2]
[350975471,1738260639320,-500.0,0.00016575,2]
[350975472,1738260639329,-500.0,0.00016575,2]
[350975473,1738260639340,-500.0,0.00016575,2]
[350975474,1738260639349,-500.0,0.00016575,2]
[350975475,1738260639359,-588.37,0.00016575,2]
[350975476,1738260639368,-500.0,0.00016575,2]
[350975477,1738260639377,-1835.42,0.00016575,2]
[350975478,1738260639386,-500.0,0.00016711,2]
[350975479,1738260639395,-160.97879767,0.00016711,2]
[350975480,1738260639404,-500.0,0.00016711,2]
[350975481,1738260639413,-500.0,0.00016711,2]
[350975482,1738260639422,-500.0,0.00016711,2]
[350975483,1738260639433,-500.0,0.00016711,2]
[350975484,1738260639445,-387.62197716,0.00016711,2]
[350975485,1738260639454,-500.0,0.00016711,2]
[350975486,1738260639463,-500.0,0.00016711,2]
[350975487,1738260639473,-633.9035926,0.00016711,2]
[350975488,1738260639482,-500.0,0.00016711,2]
[350975489,1738260639491,-500.0,0.00016711,2]
[350975490,1738260639501,-500.0,0.00016711,2]
[350975491,1738260639511,-500.0,0.00016711,2]
[350975492,1738260639521,-500.0,0.00016712,2]
[350975493,1738260639532,-500.0,0.00016712,2]
[350975494,1738260639542,-500.0,0.00016712,2]
[350975495,1738260639554,-500.0,0.00016712,2]
[350975496,1738260639564,-500.0,0.00016712,2]
[350975497,1738260639573,-500.0,0.00016712,2]
[350975498,1738260639583,-500.0,0.00016712,2]
[350975499,1738260639593,-500.0,0.00016712,2]
[350975500,1738260639603,-500.0,0.00016712,2]
[350975501,1738260639613,-500.0,0.00016712,2]
[350975502,1738260639624,-534.75477925,0.00016712,2]
[350975503,1738260639634,-500.0,0.00016712,2]